{"text_format":"1","workbook":"xlsx","n_sheets":5,"sheets":["Start","Einführung","Bilanz_Test","GuV_Test","Cashflow1"],"not_rendered":{"charts":0,"images":48,"macros":1,"external_links":0,"defined_names":100,"comments":0,"pivot_tables":0},"unopened":[],"bounds":{"document_bytes":16777216,"sheet_cells":100000,"rows_first":2000,"rows_last":500,"rows_between":2000,"halvings":0,"cell_chars":16384,"cell_head_chars":4096},"cells_cut":0,"cells_raw":0,"read":"whole","date_system":"1900"}

{"sheet":"Start","index":0,"n_rows":20,"n_cols":12,"rows_kept":20,"cut":false,"hidden":false,"merged":[]}
[]
[null,null,null,null,null,"Modul 02 : Unternehmensgründung"]
[]
[null,null,null,null,null,null,null,null,null,null,null,"Zu dieser Datei:"]
[]
[null,null,null,null,null,null,null,null,null,null,null,"Mit den in dieser Datei angebotenen Wissenstests kann der Nutzer überprüfen,"]
[null,null,null,null,null,null,null,null,null,null,null,"inwieweit das Grundwissen zu den Themen \"Bilanz\", \"Erfolgsrechnung\" und \"Kapital-"]
[null,null,null,null,null,null,null,null,null,null,null,"flussrechnung\" bereits gefestigt ist:"]
[]
[null,null,null,null,null,null,null,null,null,null,null,"Zu diesem Zweck werden einige typische Geschäftsvorfälle aufgeführt, zu denen anzu-"]
[null,null,null,null,null,null,null,null,null,null,null,"geben ist, auf welche Positionen der Bilanz und der Gewinn- und Verlustrechnung"]
[null,null,null,null,null,null,null,null,null,null,null,"diese Vorfälle Auswirkungen haben."]
[null,null,null,null,null,null,null,null,null,null,null,"Dabei geht es nur um den Sachbezug, die zugehörigen Zahlwerte werden dann intern"]
[null,null,null,null,null,null,null,null,null,null,null,"hinzugefügt."]
[null,null,null,null,null,null,null,null,null,null,null,"Die Auswirkungen auf die Kapitalflussrechnung (nach der indirekten Methode) werden"]
[null,null,null,null,null,null,null,null,null,null,null,"gleichfalls intern ermittelt und dann angezeigt."]
[]
[null,null,null,null,null,null,null,null,null,null,null,"Im Tabellenblatt \"Einführung\" werden in Kurzfassung notwendige inhaltliche Aussagen"]
[null,null,null,null,null,null,null,null,null,null,null,"zum Gegenstand dieser Wissenstest gemacht. Detailausführungen können in den "]
[null,null,null,null,null,null,null,null,null,null,null,"angegebenen PDF-Dateien nachgelesen werden."]

{"sheet":"Einführung","index":1,"n_rows":48,"n_cols":9,"rows_kept":48,"cut":false,"hidden":false,"merged":[]}
[]
[]
[null,null,"1. Einführung"]
[]
[null,null,"Die Ingangsetzung und die fortlaufende Stabilisierung des Geschäftsbetriebs eines neu gegründeten Unternehmens ist"]
[null,null,"mit vielen Aktivitäten der Beschaffung von Kapital, des Einkaufs von Sachgütern und Dienstleistungen,  der Erstellung"]
[null,null,"und des Verkaufs von Produkten und Leistungen, des Einzugs von Forderungen aus Lieferungen und Leistungen, der "]
[null,null,"Begleichung eingegangener Verbindlichkeiten, der Zahlung von Steuern und anders mehr verbunden."]
[null,null,"All diese Aktivitäten haben - erfolgversprechende, aber auch belastende - betriebswirtschaftliche Wirkungen."]
[null,null,"Damit der Unternehmer hierbei nicht den Überblick verliert und er zugleich auch seinen handels- und steuerrechtlichen"]
[null,null,"Verpflichtungen als ordentlicher Kaufmann nachkommen kann, benötigt er möglichst tagaktuelle Informationen über"]
[null,null,"die Wirkungen seiner Geschäftsaktivitäten und der damit verbundenen Entscheidungen."]
[null,null,"Auf drei Sachverhalte muss der Gründer - als Kaufmann - sein besonderen Interesse richten:"]
[null,null,null,"Erstens:","Wie ist - stichtagsbezogen - die wirtschaftliche Lage seines Unternehmens zu bewerten?"]
[null,null,null,"Zweitens:","Wie stellt sich - zeitraumbezogen - der Erfolg (Gewinn oder Verlust) seiner Geschäftstätigkeit dar?"]
[null,null,null,"Drittens:","Über welche - selbst erwirtschafteten - liquiden Mittel kann er als Unternehmer verfügen?"]
[]
[null,null,"Die Antwort auf die erste Frage liefert die BILANZ. Siehe hierzu folgende PDF-Dateien:"]
[]
[null,null,"Aus einer Bilanz kann aber nur bedingt eine Antwort auf die zweite Frage"]
[null,null,"abgeleitet werden. Hierzu bedarf es der Aufstellung einer aussagefähigen Gewinn- und Verlustrechnung (GuV)."]
[]
[null,null,null,null,null,null,null,"Siehe hierzu folgende PDF-Datei:"]
[]
[null,null,"Aber weder die Bilanz noch die GuV liefert eine eindeutige Antwort auf die dritte Frage,"]
[null,null,"zumindest nicht direkt, denn eine Antwort auf die dritte Frage erfordert eine Untersuchung der mit den"]
[null,null,"Geschäftsvorfällen verbundenen Einzahlungs- und Auszahlungsströmen und das Aufstellen einer Kapitalflussrechnung."]
[]
[null,null,null,null,null,null,null,null,"Siehe hierzu folgende PDF-Datei:"]
[]
[null,null,"Wissenstests (Übungsaufgaben)"]
[null,null,"(1) Bilanz und Bilanzveränderungen"]
[null,null,null,"In der Tabelle \"Bilanz_Test\"  werden 7 typische Geschäftsvorfälle zur Auswahl angezeigt."]
[null,null,null,"Die Aufgabe im Test besteht darin, a) zu klären, welchem Typ die durch den Geschäftsvorfall bedingten Bilanz-"]
[null,null,null,"veränderungen  entsprechen und b) anzugeben, welche Positionen der Bilanz durch den jeweiligen Geschäftsvorfall"]
[null,null,null," berührt werden.  Achten Sie dabei darauf, dass das Bilanzgleichgewicht  erhalten bleibt! "]
[]
[null,null,"(2) Gewinn- und Verlustrechnung (in Verbindung mit Bilanz und Kapitalflussrechnung)"]
[null,null,null,"In der Tabelle \"GuV_Test\"  werden wiederum 7 typische Geschäftsvorfälle zur Auswahl angezeigt."]
[null,null,null,"Die Aufgabe im Test besteht darin, a) zu klären, welche Positionen der Bilanz und welche Positionen der "]
[null,null,null,"der GuV-Rechnung durch den Geschäftsvorfall berührt werden."]
[null,null,null,"Dabei ist besonders darauf zu achten, dass das Jahresergebnis in der Bilanz 'auf den Cent' mit dem Ergebnis"]
[null,null,null,"lt. GuV-Rechnung übereinstimmt."]
[null,null,null,"Des Weiteren sollte nach jedem erledigten Geschäftsvorfall \"ein Blick\"  in die  Kapitalflussrechnung getätigt werden,"]
[null,null,null,"denn hier wird angezeigt, welche Wirkungen die Geschäftsvorfälle auf den Bestand an liquiden Mitteln haben."]
[]
[null,null,null,"Vor jedem \"Klick\" gut überlegen, ob er richtig sein wird, denn der Ehrgeiz sollte darin bestehen, die Tests"]
[null,null,null,"mit \"100 %\" Erfolg zu absolvieren!"]

{"sheet":"Bilanz_Test","index":2,"n_rows":49,"n_cols":16,"rows_kept":49,"cut":false,"hidden":false,"merged":[[7,12,7,16],[5,2,5,11],[30,12,30,16],[27,4,27,12],[5,13,5,14]]}
[]
[]
[null,null,"2. Bilanz und Bilanzveränderungen"]
[]
[]
[null,null,"Eröffnungsbilanz der Fa. PCX GmbH, A.Stadt zum",null,null,null,null,null,null,null,null,null,{"$f":"CONCATENATE(\"01.01. \"&YEAR(NOW())&\" \")","v":"01.01. 2021 "},"Angaben in EUR"]
[]
[null,null,"  AKTIVA",null,null,null,null,null,null,null,null,null,"PASSIVA   "]
[]
[null,null,"   A.   Anlagevermögen",null,null,null,null,null,null,null,"A.",null,"Eigenkapital",{"$f":"G24-SUM(N13:N22)","v":1000000}]
[]
[null,null,null,null,"1. Grundstücke, Bauten",null,2450000,null,null,null,"B.",null,"Verbindlichkeiten"]
[null,null,null,null,"2. Fahrzeuge",null,120000,null,null,null,null,null,"1. Verb. geg. Kreditinst.",1860000]
[null,null,null,null,"3. Geschäftsausstattung",null,200000,null,null,null,null,null,"2. Verbindlichkeiten aLuL",140000]
[]
[null,null,"   B.   Umlaufvermögen"]
[null,null,"         ",null,"1. RHB",null,40000]
[null,null,null,null,"2. Unfert. und fert. Erzeugn.",null,50000]
[null,null,"         ",null,"3. Forderungen aus LuL",null,60000]
[null,null,null,null,"4. sonstige Forderungen",null,0]
[null,null,null,null,"5. Bank",null,78000]
[null,null,"         ",null,"6. Kasse",null,2000]
[]
[null,null,null,null,null,null,{"$f":"SUM(G12:G22)","v":3000000},null,null,null,null,null,null,{"$f":"SUM(N10:N23)","v":3000000}]
[]
[null,null,null,null,null,null,null,null,"Punkte:",0]
[null,null,null,null,"Geschäftsvorfall",null,null,null,"Bewertung:","0,0"," %"]
[null,null,null,0," Wählen Sie zunächst mit Hilfe des 'Drehfeldes' den Geschäftsvorfall aus!\n Klicken Sie sodann den Ihrer Meinung nach zutreffenden Typ der Bilanzveränderung an!\n Klicken Sie dann die Nummer jener Bilanzpositionen an, die durch den Geschäftsvorfall \n berührt werden! Prüfen Sie, ob das Bilanzgleichgewicht eingehalten wird! \n Bewertng: Richtiger Klick: +1 Punkt; fehlerhafter Klick: -1 Punkt.\n Bei Wiederholung der Übung ist wieder der Button 'Start/Wiederholung' anzuklicken!"]
[]
[]
[null,null,"AKTIVA",null,null,null,null,null,null,null,null,null,"PASSIVA       "]
[]
[null,null,"   A.   Anlagevermögen",null,null,null,null,null,null,null,"A.",null,"Eigenkapital",{"$f":"G47-SUM(N39:N45)","v":1000000},null,{"$f":"A_Sum_Neu-FK_01-FK_02","v":1000000}]
[]
[null,null,null,null,"1. Grundstücke, Bauten",null,{"$f":"G12","v":2450000},null,2450000,null,null,null,"1. Ertrag",null,null,0]
[null,null,null,null,"2. Fahrzeuge",null,{"$f":"G13","v":120000},null,120000,null,null,null,"2. Aufwand",null,null,0]
[null,null,null,null,"3. Geschäftsausstattung",null,{"$f":"G14","v":200000},null,200000]
[null,null,null,null,null,null,null,null,null,null,"B.",null,"Verbindlichkeiten"]
[null,null,"   B.   Umlaufvermögen",null,null,null,null,null,null,null,null,null,"1. Verb. geg. Kreditinst.",1860000,null,1860000]
[null,null,"         ",null,"1. RHB",null,40000,null,40000,null,null,null,"2. Verbindlichkeiten aLuL",140000,null,140000]
[null,null,null,null,{"$f":"E18","v":"2. Unfert. und fert. Erzeugn."},null,50000,null,50000]
[null,null,"         ",null,"3. Forderungen aus LuL",null,60000,null,60000]
[null,null,null,null,"4. sonstige Forderungen",null,0,null,0]
[null,null,null,null,"5. Bank",null,78000,null,78000]
[null,null,"         ",null,"6. Kasse",null,2000,null,2000]
[]
[null,null,null,null,null,null,{"$f":"SUM(G35:G45)","v":3000000},null,{"$f":"SUM(I35:I45)","v":3000000},null,null,null,null,{"$f":"SUM(N33:N46)","v":3000000},null,{"$f":"EK_01+FK_01+FK_02","v":3000000}]
[]
[null,null,null,null,null,null,"Bisherige Summe",null,3000000,null,null,null,null,"Bisherige Summe",null,3000000]

{"sheet":"GuV_Test","index":3,"n_rows":33,"n_cols":24,"rows_kept":33,"cut":false,"hidden":false,"merged":[[5,2,5,11],[5,13,5,14],[10,4,10,15],[13,12,13,16],[17,12,19,12],[17,13,19,13],[17,14,19,14],[17,15,19,15]]}
[]
[]
[null,null,"3. Bilanzänderungen und Erfolgrechnung",null,null,null,null,null,null,null,null,null,null,null,null,null,null,null,null,null,"Erfolgsrechnung (GKV) "]
[]
[null,null,null,null,null,null,null,null,null,null,null,null,null,null,null,null,null,null,null,null,null,"bisher                                           neu"]
[null,null,"Eröffnungsbilanz der Fa. PCX GmbH, A.Stadt zum",null,null,null,null,null,null,null,null,null,{"$f":"CONCATENATE(\"01.01. \"&YEAR(NOW())&\" \")","v":"01.01. 2021 "},"Angaben in EUR"]
[]
[]
[null,null,null,null,null,null,null,null,"Bewertung:",0," Punkte"]
[null,null,null,null,"Geschäftsvorfall",null,null,null,null,"0,0"," %"]
[null,null,null,0," Wählen Sie zunächst mit Hilfe des 'Drehfeldes' den Geschäftsvorfall aus!\r\n Klicken Sie sodann zuerst jene Schaltflächen-Nummern der Bilanz an, die Ihrer Meinung diejenigen Positionen sind , die\r\n durch den Geschäftsvorfall berührt werden! Klicken Sie dann die Ihrer Ansicht nach zutreffenden Nummern der GuV an!\r\n Wertung: Richtiger Klick = +1 Punkt, fehlerhafter Klick = -1 Punkt!\r\n Prüfen Sie, ob das Bilanzgleichgewicht eingehalten wird und ob das Jahresergebnis laut Bilanz mit dem Jahresergebnis\r\n laut GuV-Rechnung 'auf den Cent' übereinstimmt! \r\n Klicken Sie des Weiteren nach jedem Geschäftvorfall den Button 'Kapitalflussrechnung', um die Wirkungen auf die \r\n liquiden Mittel zu überprüfen!\r\n Bei Wiederholung der Übung ist wieder der Button 'Start/Wiederholung' anzuklicken!"]
[]
[]
[null,null,"AKTIVA",null,null,null,null,null,null,null,null,null,"PASSIVA       ",null,null,null,null,null,null,null,"1.","Umsatzerlöse",null,0]
[null,null,null,null,null,null,null,null,null,null,null,null,null,null,null,null,null,null,null,null,"2. ","Bestandsveränderungen bei UE, FE",null,0]
[null,null,"   A.   Anlagevermögen",null,null,null,null,null,null,null,"A.",null,"Eigenkapital",{"$f":"G30-SUM(N23:N28)","v":1000000},null,{"$f":"A_Sum_NeuE-FK_01E-FK_02E-FK_03E","v":1000000},null,null,null,null,"3. ","andere aktivierte Eigenleistungen",null,0]
[null,null,null,null,null,null,null,null,null,null,null,null,null,null,null,null,null,null,null,null,"4. ","sonstige betriebliche Erträge",null,0]
[null,null,null,null,"1. Grundstücke, Bauten",null,2450000,null,2450000,null,null,null,"Jahresergebnis",null,null,{"$f":"A_Sum_NeuE-EK0-(FK_01E+FK_02E+FK_03E)","v":0}]
[null,null,null,null,"2. Fahrzeuge",null,120000,null,120000,null,null,null,null,null,null,null,null,null,null,null,"5.","Materialaufwand",null,0]
[null,null,null,null,"3. Geschäftsausstattung",null,200000,null,200000,null,null,null,null,null,null,null,null,null,null,null,"6.","Personalaufwand",null,0]
[null,null,null,null,null,null,null,null,null,null,null,null,null,null,null,null,null,null,null,null,"7.","Abschreibungen",null,0]
[null,null,"   B.   Umlaufvermögen",null,null,null,null,null,null,null,"B.",null,"Verbindlichkeiten",null,null,null,null,null,null,null,"8.","sonstige betriebliche Aufwendungen",null,0]
[null,null,"         ",null,"1. RHB",null,40000,null,40000,null,null,null,"1. Verb. geg. Kreditinst.",1860000,null,1860000,null,null,null,null,null,"Betriebsergebnis",null,{"$f":"SUM(X14:X17)-SUM(X19:X22)","v":0}]
[null,null,null,null,"2. Unfert. und fert. Erzeugn.",null,50000,null,50000,null,null,null,"2. Verbindlichkeiten aLuL",140000,null,140000]
[null,null,"         ",null,"3. Forderungen aus LuL",null,60000,null,60000,null,null,null,"3. Sonst. Verbindl. (USt)",0,null,0,null,null,null,null,"9.","sonstige Zinsen und ähnl. Erträge",null,0]
[null,null,null,null,"4. sonstige Forderungen",null,0,null,0,null,null,null,null,null,null,null,null,null,null,null,"10.","Zinsen und ähnliche Aufwendungen",null,0]
[null,null,null,null,"5. Bank",null,78000,null,78000,null,null,null,null,null,null,null,null,null,null,null,null,"Ergebnis der gewöhnl. Geschäftstät.",null,{"$f":"B_Ergebnis+ZinsE-ZinsA","v":0}]
[null,null,"         ",null,"6. Kasse",null,2000,null,2000]
[null,null,null,null,null,null,null,null,null,null,null,null,null,null,null,null,null,null,null,null,"11.","außerordentliche Erträge",null,0]
[null,null,null,null,null,null,{"$f":"SUM(G18:G28)","v":3000000},null,{"$f":"SUM(I18:I28)","v":3000000},null,null,null,null,{"$f":"SUM(N16:N29)","v":3000000},null,{"$f":"EK_01E+FK_01E+FK_02E+FK_03E","v":3000000},null,null,null,null,"12.","außerordentliche Aufwendungen",null,0]
[null,null,null,null,null,null,null,null,null,null,null,null,null,null,null,null,null,null,null,null,null,"außerordentliches Ergebnis",null,{"$f":"ao_Ert-ao_Aufw","v":0}]
[null,null,null,null,null,null,"Bisherige Summe",null,3015700,null,null,null,null,"Bisherige Summe",null,3015700]
[null,null,null,null,null,null,null,null,null,null,null,null,null,null,null,null,null,null,null,null," ","Jahresüberschuss / Jahresfehlbetrag",null,{"$f":"Erg_gewGT+ao_Erg","v":0}]

{"sheet":"Cashflow1","index":4,"n_rows":34,"n_cols":7,"rows_kept":34,"cut":false,"hidden":true,"merged":[[27,3,27,4],[33,2,34,7],[9,3,9,5],[9,6,9,7],[19,3,19,4],[22,3,22,4],[25,3,25,4],[29,3,29,5],[29,6,29,7],[31,3,31,5],[31,6,31,7],[32,6,32,7]]}
[]
[]
[null,null,"C. Kapitalflussrechnung"]
[null,null,"Die Kapitalflussrechnung nach der indirekten Methode basiert allein auf den Daten der"]
[null,null,"Bilanz und der GuV_Rechnung. Bei den Änderungen der Bilanz-Daten wird wie gerechnet:"]
[null,null,"AKTIVA:","Änderung = alter Wert ./. neuer Wert (\"plus\" = 'weniger Kapitalbindung';  \"minus\" = 'mehr Kapitalbindung') "]
[null,null,"PASSIVA:","Änderung =  neuer Wert ./. alter Wert (\"plus\" ='spart Geldabfluss';  \"minus\" =  'Geldabfluss') "]
[]
[null,null,null,null,"Gfv-Nr:",{"$f":"Listindex2","v":0}]
[null,null,"0.","Liquide Mittel vor Beginn des Testes",null,null,{"$f":"Bank1+Kasse1","v":80000}]
[]
[null,null,"1.","Jahresergebnis lt. GuV",{"$f":"Jahresergebnis","v":0}]
[null,null,"2.","Abschreibungen",{"$f":"Abschr","v":0}]
[null,null,"3.","Zu-/Abnahme der RHB-Vorräte",{"$f":"RHB_1-UV_01E","v":0}]
[null,null,"4.","Zu-/Abnahme der Vorräte bei UE/FE",{"$f":"UEFE-UV_02E","v":0}]
[null,null,"5.","Zu-/Abnahme der Forderungen  aLuL",{"$f":"Ford1-UV_03E","v":0}]
[null,null,"6.","Zu-/Abnahme der sonstigen Forderungen",{"$f":"sFord1-UV_06E","v":0}]
[null,null,"7.","Zu-/Abnahme der Verbindlichkeiten aLuL",{"$f":"FK_02E-Verb_aLuL1","v":0}]
[null,null,"8.","Zu-/Abnahme der sonst. Verbindlichkeiten (USt)",{"$f":"FK_03E-sonstVbl1","v":0}]
[null,null,"9.","Operativer Cashflow",null,{"$f":"SUM(E12:E19)","v":0}]
[]
[null,null,"10.","Zu-/Abnahme Anlagevermögen",{"$f":"SUM(GuV_Test!G18:G20)-SUM(GuV_Test!I18:I20)","v":0}]
[null,null,"11.","Cashflow aus Investitionen",null,{"$f":"E22-E13","v":0}]
[]
[null,null,"12.","Zu-/Abnahme Verbindlichkeiten gg. Kreditinstituten",{"$f":"FK_01E-Darlehen1","v":0}]
[null,null,"13.","Cashflow aus Finanzierungstätigkeit",null,{"$f":"E25","v":0}]
[]
[null,null,"14.","Netto-Cashflow",null,{"$f":"F20+F23+F26","v":0}]
[]
[null,null,"15.","Liquide Mittel am Ende des Testes (Liqide Mittel am Anfang + Netto-Cashflow)",null,null,{"$f":"G10+F28","v":80000}]
[]
[null,null,null,"Liquide Mittel lt. Bilanz nach Abschluss des jeweiligen Geschäftsvorfalls",null,null,{"$f":"UV_04E+UV_05E","v":80000}]
[null,null,null,null,null,"Saldo:",{"$f":"G30-G32","v":0}]
[null,null,"Die Summe aus \"Anfangsbestand an liquiden Mitteln\" und \"Netto-Cashflow\" muss nach jedem Geschäftsvorfall dem jewiligen Endbestand an liquiden Mitteln entsprechen!"]